bitfinex/quotes_SOLUSD_20240916
["timestamp","ask_amount","ask_price","bid_price","bid_amount"]
[1726518853608,7.6441,130.82,130.78,7.6462]
[1726518854622,7.6457,130.8,130.76,26.765]
[1726518854925,7.6448,130.81,130.77,7.6469]
[1726518855625,7.6442,130.82,130.78,7.6464]
[1726518856719,7.6447,130.81,130.78,7.6464]
[1726518857331,21.9189,130.83,130.79,7.6457]
[1726518857638,7.6441,130.82,130.79,7.6457]
[1726518858940,29.5626,130.83,130.79,7.6457]
[1726518860710,29.5626,130.83,130.8,7.645]
[1726518860711,21.9189,130.83,130.8,7.645]
[1726518861118,7.6432,130.84,130.75,38.2395]
[1726518861327,7.6432,130.84,130.81,7.6446]
[1726518861530,7.6432,130.84,130.8,26.7578]
[1726518862628,7.6437,130.83,130.8,19.1128]
[1726518867043,7.6437,130.83,130.79,7.6456]
[1726518867839,7.6441,130.82,130.79,7.6456]
[1726518868342,7.6448,130.81,130.78,26.7621]
[1726518868647,7.6448,130.81,130.78,19.1159]
[1726518868837,7.6458,130.79,130.75,19.1194]
[1726518869043,7.6458,130.79,130.76,7.6475]
[1726518869227,7.6454,130.8,130.76,7.6475]
[1726518870171,13.9609,130.81,130.77,7.6467]
[1726518871143,7.6438,130.83,130.8,7.6452]
[1726518871453,25.7987049,130.85,130.8,26.7583]
[1726518871454,7.6429,130.84,130.8,26.7583]
[1726518871758,30.1545049,130.85,130.82,7.6436]
[1726518871950,30.1545049,130.85,130.81,26.7547]
[1726518873057,7.643,130.84,130.8,7.645]
[1726518873737,7.6435,130.83,130.79,26.7601]
[1726518873934,7.6435,130.83,130.8,7.6452]
[1726518874139,7.6433,130.84,130.8,7.6452]
[1726518874557,7.6435,130.83,130.8,7.6452]
[1726518874735,7.6435,130.83,130.79,26.7601]
[1726518875639,7.6441,130.82,130.79,26.7601]
[1726518876628,7.6441,130.82,130.78,7.6462]
[1726518876832,7.6447,130.81,130.78,7.6462]
[1726518877355,7.6443,130.82,130.78,7.6462]
[1726518878454,7.6448,130.81,130.77,19.1174]
[1726518878635,7.6448,130.81,130.77,26.7641]
[1726518881434,7.6454,130.8,130.77,19.1174]
[1726518882266,7.6459,130.79,130.75,19.1203]
[1726518882453,7.6459,130.79,130.75,26.7682]
[1726518883229,23.776884,130.82,130.75,19.1203]
[1726518885471,7.6454,130.8,130.77,7.6469]
[1726518885762,23.776884,130.82,130.75,19.1203]
[1726518885763,7.6438,130.83,130.79,7.6454]
[1726518885940,7.6438,130.83,130.8,7.6452]
[1726518886138,7.6433,130.84,130.81,7.6445]
[1726518887554,7.6433,130.84,130.8,7.6449]
[1726518888156,7.6436,130.83,130.8,7.6449]
[1726518888464,22.5122049,130.85,130.79,26.7587]
[1726518889363,7.6436,130.83,130.8,7.6451]
[1726518890970,30.1549049,130.85,130.81,7.6446]
[1726518891144,7.643,130.84,130.81,7.6446]
[1726518891672,22.5122049,130.85,130.81,7.6446]
[1726518891673,30.1547049,130.85,130.81,7.6446]
[1726518891965,7.6429,130.84,130.81,7.6446]
[1726518892569,30.1546049,130.85,130.81,7.6446]
[1726518892756,22.5122049,130.85,130.81,7.6446]
[1726518893065,30.1548049,130.85,130.81,7.6446]
[1726518893661,7.6429,130.84,130.81,7.6446]
[1726518895153,0.2823049,130.85,130.82,7.644]
[1726518895868,0.2823049,130.85,130.83,7.6434]
[1726518896052,0.2823049,130.85,130.84,7.6429]
[1726518898672,0.2823049,130.85,130.83,19.1085]
[1726518898673,0.2823049,130.85,130.83,26.7518]
[1726518901752,0.2823049,130.85,130.82,7.6439]
[1726518902074,0.2823049,130.85,130.83,7.6433]
[1726518902313,0.2823049,130.85,130.84,7.6429]
[1726518902772,0.2823049,130.85,130.83,7.6431]
[1726518904191,0.2823049,130.85,130.82,26.7539]
[1726518904381,7.9247049,130.85,130.81,7.6444]
[1726518906153,7.9247049,130.85,130.82,19.11]
[1726518906154,0.2823049,130.85,130.82,19.11]
[1726518906468,0.2823049,130.85,130.83,7.6431]
[1726518907260,0.2823049,130.85,130.82,26.7539]
[1726518907856,0.2823049,130.85,130.83,7.6433]
[1726518908170,0.2823049,130.85,130.84,7.6429]
[1726518910460,0.2823049,130.85,130.84,67.29053835]
[1726518910954,0.2823049,130.85,130.84,91.06742235]
[1726518911676,0.2823049,130.85,130.84,42.6914]
[1726518913783,0.2823049,130.85,130.84,22.6914]
[1726518916977,0.2823049,130.85,130.84,91.06742235]
[1726518917167,0.2823049,130.85,130.84,92.30702373]
[1726518917363,0.2823049,130.85,130.84,91.06742235]
[1726518917566,0.2538412,130.89,130.88,26.7419]
[1726518917775,0.2538412,130.89,130.88,27.98112608]
[1726518917973,0.2538412,130.89,130.88,43.70294634]
[1726518918783,0.2538412,130.89,130.88,66.24060426]
[1726518918989,0.2538412,130.89,130.88,86.24060426]
[1726518919288,0.2538412,130.89,130.88,108.89600426]
[1726518919887,4.12e-05,130.89,130.88,117.7259492]
[1726518920969,4.12e-05,130.89,130.88,69.3973]
[1726518922782,4.12e-05,130.89,130.88,117.7259492]
[1726518922983,0.2538412,130.93,130.92,26.7338]
[1726518923874,0.2538412,130.93,130.92,46.7338]
[1726518925989,0.2538412,130.93,130.92,26.7338]
[1726518926984,0.2538412,130.93,130.92,19.0956]
[1726518927173,0.2538412,130.93,130.92,26.7338]
[1726518927491,0.2538412,130.93,130.89,19.0987]
[1726518927792,0.2538412,130.93,130.9,7.639]
[1726518927998,0.2538412,130.93,130.91,7.6388]
[1726518929894,7.8916412,130.93,130.89,7.6395]
[1726518930271,7.8916412,130.93,130.89,26.7394]
[1726518930691,7.8916412,130.93,130.9,7.6393]
[1726518930871,0.2538412,130.93,130.9,8.45554991]
[1726518931071,0.2538412,130.93,130.91,7.6384]
[1726518932486,0.2538412,130.93,130.9,26.7363]
[1726518933291,0.2538412,130.93,130.92,26.7338]
[1726518934523,0.2538412,130.93,130.92,19.0956]
[1726518934674,0.2538412,130.93,130.9,7.6392]
[1726518934875,0.2538412,130.93,130.9,19.0971]
[1726518935074,0.2538412,130.93,130.92,7.6382]
[1726518936579,0.2538412,130.93,130.91,7.6386]
[1726518940098,0.2538412,130.93,130.92,7.6382]
[1726518940304,0.2538412,130.93,130.92,26.7338]
[1726518940678,0.2538412,130.93,130.92,19.0956]
[1726518940891,0.2538412,130.93,130.92,26.7338]
[1726518941290,0.2538412,130.93,130.92,42.45615084]
[1726518941506,0.2538412,130.93,130.92,86.23303484]
[1726518943894,0.2538412,130.93,130.92,70.510684]
[1726518944399,0.2538412,130.93,130.92,26.7338]
[1726518945510,0.2538412,130.93,130.92,19.0956]
[1726518945698,0.2538412,130.93,130.9,7.6392]
[1726518946228,0.2538412,130.93,130.91,7.6387]
[1726518946510,7.8917412,130.93,130.89,26.7382]
[1726518946815,7.8917412,130.93,130.9,7.6393]
[1726518947504,7.8917412,130.93,130.89,26.7383]
[1726518948080,7.6383,130.92,130.89,26.7383]
[1726518948415,7.6383,130.92,130.86,15.879]
[1726518948416,7.6383,130.92,130.88,7.6402]
[1726518948720,7.6384,130.92,130.88,7.6404]
[1726518949210,7.6384,130.92,130.86,19.103]
[1726518949387,7.6388,130.91,130.87,7.6409]
[1726518950381,34.5706412,130.93,130.86,26.7446]
[1726518950582,23.776884,130.92,130.86,19.103]
[1726518950801,7.64,130.89,130.86,19.103]
[1726518952312,7.64,130.89,130.85,7.6419]
[1726518952588,7.64,130.89,130.86,7.6417]
[1726518954294,7.64,130.89,130.85,19.1056]
[1726518954504,7.64,130.89,130.86,7.6417]
[1726518954836,7.6395,130.9,130.86,7.6417]
[1726518955613,7.64,130.89,130.86,7.6417]
[1726518956124,7.64,130.89,130.85,26.7477]
[1726518957388,6.1234,130.9,130.85,26.7477]
[1726518957593,7.6406,130.88,130.85,19.1056]
[1726518958005,7.6406,130.88,130.84,7.6427]
[1726518958217,7.6413,130.87,130.83,7.6432]
[1726518959218,22.8398,130.87,130.83,7.6432]
[1726518959407,7.6418,130.86,130.83,7.6434]
[1726518959609,7.6418,130.86,130.82,26.7525]
[1726518960614,7.6424,130.85,130.82,26.7525]
[1726518960812,7.6424,130.85,130.8,26.7578]
[1726518961008,7.6424,130.85,130.8,19.1131]
[1726518961331,7.6424,130.85,130.82,7.644]
[1726518962440,7.642,130.86,130.82,7.644]
[1726518964110,15.1985,130.87,130.82,19.11]
[1726518964312,15.1985,130.87,130.82,15.74563949]
[1726518964937,15.1985,130.87,130.84,19.1069]
[1726518965141,7.6401,130.89,130.84,19.1069]
[1726518966129,7.6401,130.89,130.86,7.6417]
[1726518966632,29.9286,130.9,130.86,7.6417]
[1726518966932,22.2891,130.9,130.87,7.641]
[1726518967932,29.9286,130.9,130.86,26.7454]
[1726518968134,7.6401,130.89,130.86,19.1039]
[1726518968434,7.6418,130.86,130.83,26.7507]
[1726518968608,7.6414,130.87,130.83,26.7507]
[1726518969229,7.6407,130.88,130.83,19.1075]
[1726518969864,7.6412,130.87,130.84,7.6428]
[1726518970846,7.642,130.86,130.83,19.1075]
[1726518975850,7.642,130.86,130.83,26.7509]
[1726518978649,7.6413,130.87,130.84,7.6428]
[1726518978831,22.2891,130.9,130.85,7.6422]
[1726518979040,27.6402,130.89,130.85,7.6422]
[1726518979549,7.6406,130.88,130.84,26.7483]
[1726518980748,7.6414,130.87,130.84,19.1059]
[1726518981052,7.6418,130.86,130.83,7.6432]
[1726518981250,7.6418,130.86,130.82,7.6438]
[1726518981424,7.6423,130.85,130.82,7.6438]
[1726518981841,7.6423,130.85,130.81,26.7549]
[1726518982046,7.6423,130.85,130.82,7.644]
[1726518982251,7.6414,130.87,130.83,7.6434]
[1726518983023,7.6407,130.88,130.84,7.6428]
[1726518983835,7.6412,130.87,130.83,7.6433]
[1726518984054,7.6412,130.87,130.84,7.6427]
[1726518985165,7.6407,130.88,130.84,7.6427]
[1726518986259,7.6412,130.87,130.83,26.7506]
[1726518988547,7.6412,130.87,130.84,7.6428]
[1726518990279,7.6412,130.87,130.83,26.7505]
[1726518990572,7.6419,130.86,130.83,19.1073]
[1726518990759,39.1012,130.89,130.82,7.6438]
[1726518991072,7.6424,130.85,130.82,7.6438]
[1726518993480,7.6424,130.85,130.81,26.7559]
[1726518993647,7.6424,130.85,130.82,7.644]
[1726518994479,7.6421,130.86,130.82,7.6437]
[1726518995580,7.6424,130.85,130.82,7.6437]
[1726518995885,7.6419,130.86,130.83,0.78303068]
[1726518997159,7.6419,130.86,130.82,7.6437]
[1726518997356,7.6419,130.86,130.83,1.23594043]
[1726518997556,7.6419,130.86,130.83,8.87924043]
[1726518997784,7.6419,130.86,130.83,7.6433]
[1726518997962,7.6419,130.86,130.82,7.6438]
[1726518999260,20.0,130.87,130.79,0.2538412]
[1726518999261,20.0,130.87,130.84,7.6426]
[1726518999470,43.776884,130.89,130.84,7.6426]
[1726518999961,7.6408,130.88,130.84,8.8775958]
[1726519000266,7.6413,130.87,130.83,26.751]
[1726519000882,7.6413,130.87,130.84,7.6427]
[1726519002576,7.6402,130.89,130.85,19.1054]
[1726519002888,7.6402,130.89,130.85,26.7473]
[1726519003201,7.6402,130.89,130.86,7.6417]
[1726519003695,7.6402,130.89,130.85,26.7474]
[1726519007592,29.9286,130.9,130.85,19.1054]
[1726519007776,29.9286,130.9,130.86,7.6414]
[1726519009789,22.2891,130.9,130.87,7.6409]
[1726519009987,29.9285,130.9,130.86,7.6414]
[1726519012000,22.2891,130.9,130.85,26.7475]
[1726519012207,7.6402,130.89,130.85,26.7475]
[1726519017779,29.9287,130.9,130.86,7.6415]
[1726519017979,19.096,130.92,130.85,19.1054]
[1726519017980,20.0,130.92,130.85,15.74197033]
[1726519018289,30.3926412,130.93,130.89,7.6399]
[1726519018602,0.2538412,130.93,130.91,7.6387]
[1726519018815,0.2538412,130.93,130.88,15.74197033]
[1726519018816,0.2538412,130.93,130.92,26.7338]
[1726519019324,0.2538412,130.93,130.92,42.47577033]
[1726519019611,0.2538412,130.93,130.92,26.7338]
[1726519025000,0.2538412,130.93,130.89,19.0988]
[1726519025196,0.2538412,130.93,130.91,7.6388]
[1726519025694,0.2538412,130.93,130.9,7.6391]
[1726519025899,7.8916412,130.93,130.89,26.7387]
[1726519026117,0.2538412,130.93,130.9,7.6393]
[1726519026533,7.8915412,130.93,130.89,26.7385]
[1726519029934,0.2538412,130.93,130.88,7.6404]
[1726519030107,7.6384,130.92,130.88,7.6404]
[1726519030919,7.6389,130.91,130.87,7.641]
[1726519032435,0.2538412,130.93,130.86,26.7449]
[1726519032436,7.6394,130.9,130.86,26.7449]
[1726519033213,7.639,130.91,130.87,7.6411]
[1726519038677,7.6394,130.9,130.87,7.6411]
[1726519038971,21.9233,130.91,130.83,38.216]
[1726519039165,7.6406,130.88,130.85,7.6423]
[1726519039357,7.6402,130.89,130.85,7.6423]
[1726519040875,21.9233,130.91,130.84,7.6427]
[1726519040876,7.6406,130.88,130.84,7.6427]
[1726519041246,7.6402,130.89,130.85,7.6423]
[1726519044177,7.6406,130.88,130.85,7.6423]
[1726519045078,7.64,130.89,130.85,7.6423]
[1726519045480,7.64,130.89,130.86,7.6417]
[1726519047074,7.64,130.89,130.85,7.6421]
[1726519053390,21.9233,130.91,130.86,7.6414]
[1726519054294,7.64,130.89,130.86,7.6414]
[1726519054898,7.64,130.89,130.85,26.7465]
[1726519055668,7.6407,130.88,130.85,19.1045]
[1726519055868,21.9233,130.91,130.84,7.6426]
[1726519055869,7.6411,130.87,130.84,7.6426]
[1726519056096,7.6407,130.88,130.84,7.6426]
[1726519061701,21.9233,130.91,130.84,7.6426]
[1726519061907,7.6422,130.86,130.83,19.1085]
[1726519062106,7.6422,130.86,130.83,26.7519]
[1726519062316,7.6414,130.87,130.83,26.7519]
[1726519066820,7.6414,130.87,130.84,7.6428]
[1726519067546,7.6408,130.88,130.84,7.6428]
[1726519073909,7.6412,130.87,130.84,7.6428]
[1726519079241,41.0206,130.91,130.85,7.642]
[1726519079242,7.6403,130.89,130.85,7.642]
[1726519080033,21.9233,130.91,130.83,15.74197033]
[1726519080216,7.6396,130.9,130.87,7.641]
[1726519080627,7.6396,130.9,130.86,7.6413]
[1726519081137,7.6392,130.91,130.87,7.6409]
[1726519081636,7.6395,130.9,130.86,26.7446]
[1726519083043,7.6395,130.9,130.87,7.6411]
[1726519086046,20.0,130.92,130.89,7.6399]
[1726519086430,20.0,130.92,130.87,19.1015]
[1726519086431,27.6385,130.92,130.88,7.6403]
[1726519086832,20.2538412,130.93,130.87,26.7425]
[1726519087242,7.639,130.91,130.87,26.7425]
[1726519087448,7.6384,130.92,130.88,7.6402]
[1726519087945,7.8916412,130.93,130.89,7.6396]
[1726519088523,7.6382,130.92,130.89,7.6396]
[1726519089841,7.6382,130.92,130.88,19.1002]
[1726519089842,7.6388,130.91,130.88,19.1002]
[1726519091426,7.6395,130.9,130.87,7.6406]
[1726519091639,7.639,130.91,130.86,34.1748]
[1726519091845,7.639,130.91,130.87,7.6407]
[1726519093054,7.6397,130.9,130.86,41.8163]
[1726519093254,7.64,130.89,130.86,26.7457]
[1726519093544,7.6396,130.9,130.86,26.7457]
[1726519095562,7.64,130.89,130.86,26.7457]
[1726519096763,7.6385,130.92,130.86,19.1042]
[1726519097243,7.6385,130.92,130.88,7.6402]
[1726519097759,7.6388,130.91,130.88,7.6402]
[1726519098336,0.2538412,130.93,130.89,7.6399]
[1726519098337,20.2538412,130.93,130.89,7.6399]
[1726519098541,7.8918412,130.93,130.89,7.6399]
[1726519099362,7.6383,130.92,130.89,7.6399]
[1726519100867,7.6388,130.91,130.88,26.7413]
[1726519101167,7.6388,130.91,130.88,19.101]
[1726519101331,0.2538412,130.93,130.88,19.101]
[1726519101332,7.6382,130.92,130.88,26.7413]
[1726519105477,20.2538412,130.93,130.86,19.1043]
[1726519105646,7.6397,130.9,130.86,26.7458]
[1726519111443,7.6397,130.9,130.83,16.6661]
[1726519111444,7.6418,130.86,130.83,24.3093]
[1726519111649,7.6418,130.86,130.82,26.7537]
[1726519111855,20.0,130.9,130.84,7.6425]
[1726519112251,7.6409,130.88,130.84,7.6425]
[1726519114049,7.6412,130.87,130.84,7.6425]
[1726519115379,7.6412,130.87,130.83,7.6432]
[1726519117275,20.0,130.9,130.84,19.1072]
[1726519117583,7.6403,130.89,130.85,7.6418]
[1726519117953,7.6406,130.88,130.85,7.6418]
[1726519121772,7.6406,130.88,130.84,26.7499]
[1726519121963,7.6412,130.87,130.84,26.7499]
[1726519124279,7.6419,130.86,130.83,7.6432]
[1726519128168,23.776884,130.9,130.84,7.6429]
[1726519128494,7.6407,130.88,130.85,7.6423]
[1726519128870,7.6407,130.88,130.84,7.6426]
[1726519133477,7.6412,130.87,130.84,7.6426]
[1726519134993,7.6419,130.86,130.83,26.7518]
[1726519140685,7.6415,130.87,130.84,7.6428]
[1726519141708,7.6406,130.88,130.84,7.6428]
[1726519143190,7.6402,130.89,130.85,7.642]
[1726519143384,7.6406,130.88,130.85,7.642]
[1726519144188,7.6406,130.88,130.84,7.6427]
[1726519153519,7.6412,130.87,130.83,26.7516]
[1726519154720,7.6418,130.86,130.83,26.7516]
[1726519155131,7.6418,130.86,130.83,19.1084]
[1726519155512,7.6415,130.87,130.83,26.7517]
[1726519155711,7.6415,130.87,130.83,19.1084]
[1726519157126,7.6415,130.87,130.84,7.6428]
[1726519160536,7.6415,130.87,130.83,26.7516]
[1726519161113,7.6415,130.87,130.84,7.6428]
[1726519162738,7.6408,130.88,130.84,7.6428]
[1726519163120,7.6411,130.87,130.84,7.6428]
[1726519165816,7.6421,130.86,130.83,19.1084]
[1726519166034,7.6421,130.86,130.83,26.7518]
[1726519168515,7.6423,130.85,130.82,7.6438]
[1726519174447,7.643,130.84,130.81,26.7555]
[1726519184235,7.6425,130.85,130.81,26.7555]
[1726519184638,7.642,130.86,130.82,9.1406527]
[1726519184845,7.642,130.86,130.83,1.49653831]
[1726519185637,7.642,130.86,130.82,7.644]
[1726519187744,7.6424,130.85,130.82,7.644]
[1726519189047,7.6424,130.85,130.81,26.7556]
[1726519190042,7.6424,130.85,130.82,7.6439]
[1726519200172,7.642,130.86,130.83,7.6434]
[1726519200473,3.11319458,130.91,130.83,17.26871951]
[1726519200673,42.0461412,130.93,130.84,19.106]
[1726519200853,7.6407,130.88,130.85,7.6423]
[1726519201756,7.6412,130.87,130.84,19.106]
[1726519202163,7.6417,130.86,130.82,26.7541]
[1726519202366,7.6417,130.86,130.82,26.754]
[1726519204073,7.1417,130.86,130.82,26.754]
[1726519207481,20.0,130.92,130.81,53.96437033]
[1726519207688,7.6404,130.89,130.85,7.6419]
[1726519208689,7.6406,130.88,130.85,7.6419]
[1726519210895,39.0968,130.92,130.86,7.6416]
[1726519211185,22.9507412,130.93,130.86,7.6416]
[1726519211186,7.639,130.91,130.87,7.6408]
[1726519211395,0.2538412,130.93,130.87,15.74197033]
[1726519211396,7.8915412,130.93,130.87,15.74197033]
[1726519211571,0.2538412,130.93,130.91,7.6387]
[1726519211979,0.2538412,130.93,130.92,7.6382]
[1726519218383,0.2538412,130.93,130.92,26.7338]
[1726519222604,0.2538412,130.93,130.92,28.26095989]
[1726519223287,0.2538412,130.93,130.92,26.7338]
[1726519226305,0.2538412,130.93,130.92,50.510684]
[1726519226485,0.2538412,130.93,130.92,66.25265433]
[1726519227001,0.2538412,130.93,130.92,102.39665433]
[1726519227378,0.2538412,130.97,130.96,26.7256]
[1726519227583,0.2538412,130.97,130.96,66.24445433]
[1726519227903,0.2538412,130.97,130.96,86.24445433]
[1726519228200,0.2538412,130.97,130.96,102.56505433]
[1726519230505,0.2538412,130.97,130.96,103.65722841]
[1726519230878,0.2538412,130.97,130.96,133.65722841]
[1726519231079,0.2538412,130.97,130.96,117.91525808]
[1726519231384,0.2538412,130.97,130.96,133.65722841]
[1726519233113,0.2538412,130.97,130.96,132.56505433]
[1726519235211,0.2538412,130.97,130.96,73.0462]
[1726519235405,0.2538412,130.97,130.96,56.7256]
[1726519235705,0.2538412,130.97,130.96,26.7256]
[1726519236917,0.2538412,130.97,130.95,7.6363]
[1726519238086,0.2538412,130.97,130.93,19.0927]
[1726519238087,0.2538412,130.97,130.94,7.6368]
[1726519239408,0.2538412,130.97,130.93,19.0927]
[1726519239594,7.8893412,130.97,130.93,19.0927]
[1726519240791,7.8893412,130.97,130.93,26.7302]
[1726519242598,7.6363,130.96,130.92,7.638]
[1726519254697,7.6365,130.95,130.92,7.638]
[1726519255096,7.6365,130.95,130.91,7.6386]
[1726519255504,7.6365,130.95,130.9,19.0973]
[1726519255505,22.7365412,130.97,130.9,26.7363]
[1726519255697,7.6378,130.93,130.9,19.0973]
[1726519256296,7.6373,130.94,130.9,26.7366]
[1726519256496,22.7365412,130.97,130.9,19.0973]
[1726519257327,7.6366,130.95,130.91,7.6384]
[1726519260314,7.6366,130.95,130.62,24.10257538]
[1726519260315,7.6405,130.88,130.83,16.4685412]
[1726519260618,7.6408,130.88,130.83,27.0050412]
[1726519260816,20.0,130.91,130.83,27.0050412]
[1726519260817,7.6401,130.89,130.84,7.6428]
[1726519261002,7.6406,130.88,130.84,7.6428]
[1726519261207,7.6395,130.9,130.85,19.1054]
[1726519261434,7.6418,130.86,130.83,0.2538412]
[1726519261613,20.0,130.88,130.83,0.2538412]
[1726519261931,7.6427,130.85,130.83,0.2538412]
[1726519262333,20.0,130.88,130.83,0.2538412]
[1726519262334,7.6429,130.84,130.83,0.2538412]
[1726519263044,44.15,130.84,130.83,0.2538412]
[1726519263340,44.15,130.84,130.79,0.2538412]
[1726519263341,7.6452,130.8,130.79,0.2538412]
[1726519264237,7.6448,130.81,130.79,0.2538412]
[1726519266538,27.6441,130.82,130.79,0.2538412]
[1726519267611,7.6447,130.81,130.79,0.2538412]
[1726519268019,7.6452,130.8,130.79,0.2538412]
[1726519268212,27.6452,130.8,130.79,0.2538412]
[1726519269544,27.6452,130.8,130.76,0.2538412]
[1726519269545,7.647,130.77,130.76,0.2538412]
[1726519270428,7.6466,130.78,130.76,0.2538412]
[1726519271120,20.0,130.78,130.76,0.2538412]
[1726519271527,43.776884,130.82,130.76,0.2538412]
[1726519271931,20.0,130.78,130.76,0.2538412]
[1726519272240,7.6466,130.78,130.76,0.2538412]
[1726519272622,39.1106,130.82,130.76,0.2538412]
[1726519272826,20.0,130.79,130.76,7.9013412]
[1726519273022,7.6456,130.8,130.76,7.9013412]
[1726519273330,7.6442,130.82,130.77,7.6469]
[1726519273537,6.3774,130.83,130.78,1.52531309]
[1726519273713,14.0213,130.83,130.79,7.6456]
[1726519273923,7.6441,130.82,130.78,7.6463]
[1726519277250,7.6447,130.81,130.77,26.7641]
[1726519277548,7.6452,130.8,130.77,19.1172]
[1726519277925,7.6458,130.79,130.76,0.2538412]
[1726519278148,7.6453,130.8,130.76,7.9012412]
[1726519278532,20.0,130.82,130.76,19.3726412]
[1726519279550,7.6447,130.81,130.77,7.6468]
[1726519280739,7.6453,130.8,130.76,27.0200412]
[1726519281848,7.6448,130.81,130.77,7.6469]
[1726519282554,27.6442,130.82,130.78,7.6464]
[1726519288583,7.6447,130.81,130.77,7.6469]
[1726519289237,20.0,130.82,130.78,19.1155]
[1726519289761,20.0,130.82,130.79,7.6454]
[1726519290659,27.6442,130.82,130.78,26.7616]
[1726519291154,7.6447,130.81,130.78,19.1155]
[1726519293449,20.0,130.83,130.78,26.7614]
[1726519293450,7.6442,130.82,130.78,26.7614]
[1726519294665,27.6436,130.83,130.79,7.6456]
[1726519294961,7.6434,130.84,130.8,19.113]
[1726519295137,7.6434,130.84,130.76,38.4907412]
[1726519295138,16.2931,130.87,130.83,7.6435]
[1726519295482,7.6409,130.88,130.84,7.6428]
[1726519296459,20.0,130.87,130.84,26.75]
[1726519296837,20.0,130.87,130.85,7.6422]
[1726519297058,20.0,130.88,130.85,7.6422]
[1726519297437,20.0,130.88,130.84,26.7498]
[1726519297438,7.6406,130.88,130.84,26.7498]
[1726519297764,7.6406,130.88,130.85,1.52736474]
[1726519298337,7.6406,130.88,130.84,26.7498]
[1726519298742,7.6411,130.87,130.84,19.1072]
[1726519298945,20.0,130.88,130.81,26.7549]
[1726519299247,43.1307252,130.89,130.81,26.7549]
[1726519299248,7.6425,130.85,130.81,26.7549]
[1726519300448,7.643,130.84,130.81,19.1105]
[1726519301958,7.6425,130.85,130.81,19.1105]
[1726519302557,7.6419,130.86,130.82,7.6439]
[1726519302960,20.0,130.85,130.82,7.6439]
[1726519303466,27.6424,130.85,130.81,19.1105]
[1726519303781,7.6419,130.86,130.82,7.6436]
[1726519304068,20.0,130.85,130.82,7.6436]
[1726519304453,20.0,130.85,130.83,7.6434]
[1726519305663,20.0,130.85,130.82,7.6438]
[1726519307754,20.0,130.87,130.81,26.7549]
[1726519308074,7.6425,130.85,130.81,26.7549]
[1726519308452,20.0,130.87,130.82,7.6439]
[1726519308453,7.6419,130.86,130.82,7.6439]
[1726519308745,20.0,130.85,130.82,7.6438]
[1726519311770,20.0,130.85,130.83,7.6435]
[1726519311954,20.0,130.85,130.82,7.6439]
[1726519314074,20.0,130.88,130.83,7.6432]
[1726519314277,20.0,130.86,130.83,7.6432]
[1726519314450,27.6418,130.86,130.83,7.6432]
[1726519316276,27.6418,130.86,130.82,7.6439]
[1726519319479,7.6424,130.85,130.82,7.6439]
[1726519321582,7.642,130.86,130.82,7.6439]
[1726519322058,20.0,130.85,130.82,7.6439]
[1726519322676,20.0,130.85,130.83,7.6434]
[1726519323083,20.0,130.85,130.81,19.1105]
[1726519323084,7.6409,130.88,130.81,23.776884]
[1726519323257,0.2538412,130.89,130.81,23.776884]
[1726519324168,0.2538412,130.89,130.86,7.6413]
[1726519325288,7.8938412,130.89,130.86,7.6413]
[1726519325587,7.8938412,130.89,130.85,26.7476]
[1726519326863,7.6415,130.87,130.83,23.4695]
[1726519327077,7.6415,130.87,130.84,7.6428]
[1726519328480,0.2538412,130.89,130.83,7.6433]
[1726519328881,7.6413,130.87,130.83,7.6433]
[1726519330180,7.6414,130.87,130.83,7.6433]
[1726519331871,7.6418,130.86,130.82,26.7524]
[1726519332059,7.6418,130.86,130.83,7.6434]